bitfinex-derivatives/quotes_SOLF0:USTF0_20250714
["timestamp","ask_amount","ask_price","bid_price","bid_amount"]
[1752504491821,6.7269801,166.39,166.3,6.0117]
[1752504492020,6.0099,166.36,166.26,6.7269801]
[1752504492321,6.7269801,166.39,166.29,6.012]
[1752504492517,6.0096,166.36,166.29,6.012]
[1752504492718,6.7269801,166.54,166.22,518.62]
[1752504492923,18.02,166.47,166.28,6.7269801]
[1752504493120,6.7269801,166.34,166.24,6.7269801]
[1752504493323,6.7269801,166.31,166.22,518.62]
[1752504493524,6.7269801,166.31,166.21,179.02]
[1752504493724,6.7269801,166.31,166.24,6.0137]
[1752504494023,6.7269801,166.31,166.21,179.02]
[1752504494227,6.0124,166.29,166.24,6.0139]
[1752504494424,6.0124,166.29,166.21,179.02]
[1752504494625,724.22,166.38,166.21,179.02]
[1752504494924,6.7269801,166.31,166.25,6.0135]
[1752504495121,6.7269801,166.31,166.21,179.02]
[1752504495620,6.7269801,166.31,166.25,6.0135]
[1752504495817,6.7269801,166.31,166.21,179.02]
[1752504496722,6.7269801,166.33,166.21,185.7469801]
[1752504496925,6.0103,166.35,166.29,6.0118]
[1752504497116,6.0103,166.35,166.22,11.11407418]
[1752504497322,11.11407418,166.36,166.22,11.11407418]
[1752504497819,706.2,166.38,166.25,11.11407418]
[1752504498323,187.34,166.38,166.35,6.0099]
[1752504498520,11.11407418,166.4,166.35,6.0099]
[1752504499028,205.26,166.43,166.28,11.11407418]
[1752504499029,187.24,166.43,166.36,6.0096]
[1752504499227,187.24,166.43,166.31,11.11407418]
[1752504499617,6.0081,166.41,166.36,6.0093]
[1752504500122,6.0074,166.42,166.31,11.11407418]
[1752504501528,6.0074,166.42,166.37,6.0091]
[1752504501729,193.2471,166.43,166.31,11.11407418]
[1752504501933,187.24,166.43,166.38,6.0087]
[1752504502929,187.24,166.43,166.29,11.10283967]
[1752504504025,6.0085,166.39,166.35,6.0097]
[1752504504431,6.0071,166.43,166.39,6.0084]
[1752504504731,705.82,166.46,166.32,11.10283967]
[1752504504930,6.0084,166.4,166.35,6.0097]
[1752504505129,11.10283967,166.44,166.3,11.10283967]
[1752504505427,215.90226291,166.5,166.36,11.10226291]
[1752504505632,11.10226291,166.47,166.33,11.10226291]
[1752504505831,187.22,166.47,166.36,11.10226291]
[1752504506028,6.0065,166.45,166.36,11.10226291]
[1752504506225,187.22,166.47,166.36,11.10226291]
[1752504507234,6.007,166.44,166.39,6.0085]
[1752504507434,6.007,166.44,166.36,11.10226291]
[1752504507930,6.007,166.44,166.39,6.0082]
[1752504508339,6.0071,166.43,166.39,6.0082]
[1752504508635,187.1,166.47,166.38,6.0088]
[1752504508842,187.1,166.47,166.36,11.10226291]
[1752504509332,198.20226291,166.47,166.36,11.10226291]
[1752504509541,216.22226291,166.47,166.31,11.10226291]
[1752504510139,216.22226291,166.47,166.35,6.0099]
[1752504510338,216.22226291,166.47,166.31,11.10226291]
[1752504510941,216.22226291,166.47,166.34,11.10226291]
[1752504511139,194.21,166.47,166.34,11.10226291]
[1752504511535,194.21,166.47,166.37,6.0091]
[1752504511935,194.21,166.47,166.34,11.10226291]
[1752504512744,18.02,166.46,166.38,6.0088]
[1752504512941,204.66,166.46,166.38,6.0088]
[1752504513643,18.02,166.46,166.38,6.0088]
[1752504513841,18.02,166.48,166.38,6.0088]
[1752504514040,18.02,166.46,166.38,6.0088]
[1752504514834,186.4,166.45,166.38,6.0088]
[1752504515237,6.0077,166.42,166.37,6.0092]
[1752504515436,186.4,166.45,166.37,6.0092]
[1752504515745,6.0077,166.42,166.37,6.0092]
[1752504515941,186.4,166.45,166.34,11.10226291]
[1752504516141,186.4,166.45,166.31,11.10226291]
[1752504516142,3.4,166.41,166.31,11.10226291]
[1752504516336,29.12226291,166.43,166.31,11.10226291]
[1752504516544,11.10226291,166.43,166.31,11.10226291]
[1752504516944,24.76541745,166.44,166.32,6.74541745]
[1752504517144,24.76541745,166.44,166.35,6.0097]
[1752504517448,24.76541745,166.44,166.32,6.74541745]
[1752504517640,24.76541745,166.44,166.34,6.0101]
[1752504518046,186.4,166.45,166.32,6.74541745]
[1752504518241,186.4,166.45,166.35,6.74541745]
[1752504518845,186.4,166.45,166.36,6.0093]
[1752504519348,6.0082,166.4,166.36,6.0093]
[1752504519539,186.4,166.45,166.37,6.0092]
[1752504519846,6.0077,166.42,166.35,6.74541745]
[1752504520242,6.0077,166.42,166.37,6.0092]
[1752504520443,186.4,166.45,166.19,12.0311]
[1752504520444,24.76541745,166.4,166.19,12.0311]
[1752504520641,6.74541745,166.35,166.24,6.74541745]
[1752504520946,192.98541745,166.35,166.24,6.74541745]
[1752504521144,192.98541745,166.35,166.15,519.26]
[1752504521442,6.74541745,166.32,166.21,6.74541745]
[1752504521645,6.0132,166.26,166.23,6.0142]
[1752504521846,6.0132,166.26,166.21,6.74541745]
[1752504522243,6.0137,166.25,166.19,6.74541745]
[1752504522644,6.0137,166.25,166.22,6.0146]
[1752504522844,3.4,166.23,166.18,6.74541745]
[1752504523043,3.4,166.23,166.16,6.74541745]
[1752504523347,6.014,166.24,166.16,6.74541745]
[1752504523840,6.74541745,166.29,166.19,6.74541745]
[1752504524047,6.0136,166.25,166.19,6.74541745]
[1752504524242,6.74541745,166.29,166.19,6.74541745]
[1752504524442,6.0133,166.26,166.19,6.74541745]
[1752504524640,6.0133,166.26,166.19,6.75566763]
[1752504524840,6.75566763,166.3,166.19,6.75566763]
[1752504525043,6.013,166.27,166.19,6.75566763]
[1752504525242,6.013,166.27,166.21,6.75566763]
[1752504525443,6.0149,166.22,166.15,519.26]
[1752504525649,3.4,166.21,166.16,6.75566763]
[1752504525844,6.75566763,166.28,166.2,6.0151]
[1752504526147,6.75566763,166.28,166.16,6.75566763]
[1752504526353,6.75566763,166.28,166.21,6.0148]
[1752504526550,6.0138,166.25,166.21,6.0148]
[1752504526954,6.75566763,166.3,166.19,6.75566763]
[1752504527257,3.4,166.25,166.18,6.75566763]
[1752504527455,3.4,166.29,166.18,6.75566763]
[1752504528051,3.4,166.27,166.2,6.0154]
[1752504528247,6.75566763,166.28,166.16,6.75566763]
[1752504528454,6.75566763,166.28,166.2,6.0151]
[1752504528751,6.75566763,166.28,166.16,6.75566763]
[1752504528950,6.75566763,166.28,166.18,6.75566763]
[1752504529349,6.0136,166.25,166.18,6.75566763]
[1752504529555,6.75566763,166.28,166.18,6.75566763]
[1752504529957,6.75566763,166.28,166.15,519.26]
[1752504529958,6.75566763,166.3,166.2,6.75566763]
[1752504530254,6.75566763,166.3,166.18,6.75566763]
[1752504530446,6.75566763,166.28,166.18,6.75566763]
[1752504530649,3.4,166.25,166.16,6.75566763]
[1752504530849,3.4,166.2,166.06,519.58]
[1752504531048,3.4,166.2,166.13,6.75566763]
[1752504531454,3.4,166.2,166.18,6.0158]
[1752504531758,3.51,166.23,166.07,186.6657045]
[1752504532054,3.51,166.23,166.17,6.0162]
[1752504532458,6.0152,166.21,166.18,6.0161]
[1752504532646,3.51,166.2,166.18,6.0161]
[1752504532853,9.5252,166.21,166.18,6.0161]
[1752504533257,6.0152,166.21,166.18,6.0161]
[1752504533457,9.5247,166.22,166.13,6.75566763]
[1752504533956,9.5247,166.22,166.19,6.0157]
[1752504534353,6.0147,166.22,166.19,6.0157]
[1752504534758,9.5247,166.22,166.19,6.0157]
[1752504535258,6.0147,166.22,166.19,6.0157]
[1752504535455,3.51,166.2,166.12,6.75566763]
[1752504536651,18.02,166.26,166.12,6.75566763]
[1752504536852,6.75566763,166.24,166.12,6.75566763]
[1752504537658,6.75566763,166.26,166.15,6.75566763]
[1752504538056,6.015,166.21,166.18,6.0158]
[1752504538251,3.51,166.2,166.07,185.62]
[1752504538457,3.51,166.2,166.11,6.75566763]
[1752504538658,6.0165,166.17,166.14,6.0172]
[1752504538862,3.51,166.16,166.11,6.75566763]
[1752504539057,3.51,166.22,166.11,6.75566763]
[1752504539257,6.75566763,166.23,166.11,6.75566763]
[1752504539466,3.51,166.22,166.11,6.75566763]
[1752504539669,6.75566763,166.2,166.07,185.62]
[1752504539968,3.51,166.14,166.09,6.75566763]
[1752504540361,3.51,166.21,166.09,6.75566763]
[1752504540561,10.26566763,166.24,166.12,6.75566763]
[1752504540760,6.75566763,166.25,166.15,6.75566763]
[1752504540956,6.015,166.21,166.18,6.0159]
[1752504541264,519.78,166.27,166.18,6.75566763]
[1752504541857,3.51,166.26,166.18,6.75566763]
[1752504542558,3.51,166.26,166.16,6.75566763]
[1752504542763,3.51,166.26,166.09,12.0384]
[1752504542764,3.51,166.26,166.15,6.75566763]
[1752504543063,3.51,166.23,166.21,6.0148]
[1752504543263,3.51,166.23,166.18,6.75973528]
[1752504543458,3.51,166.23,166.11,12.0368]
[1752504543661,3.51,166.23,166.16,6.75853256]
[1752504544065,6.0152,166.21,166.18,6.016]
[1752504544265,3.51,166.2,166.16,6.75853256]
[1752504544465,3.51,166.19,166.16,12.77513256]
[1752504544767,3.51,166.19,166.14,6.75853256]
[1752504545068,3.51,166.19,166.16,6.0166]
[1752504545465,6.75853256,166.25,166.14,6.75853256]
[1752504545764,3.51,166.18,166.16,6.0167]
[1752504545964,3.51,166.18,166.14,6.75853256]
[1752504546361,3.51,166.17,166.16,6.0166]
[1752504546863,3.51,166.24,166.12,6.75853256]
[1752504547063,3.51,166.21,166.12,6.75853256]
[1752504547464,3.51,166.21,166.06,531.6203]
[1752504547775,3.51,166.21,166.1,6.75853256]
[1752504548068,3.51,166.15,166.06,531.6203]
[1752504548371,3.51,166.15,166.1,6.75853256]
[1752504548869,6.75853256,166.22,166.1,6.75853256]
[1752504549268,6.0167,166.17,166.14,6.0173]
[1752504549468,3.51,166.2,166.13,6.75853256]
[1752504549862,6.0168,166.17,166.14,6.0174]
[1752504550067,3.51,166.16,166.06,531.6203]
[1752504550268,3.51,166.15,166.06,519.58]
[1752504550466,6.75853256,166.14,166.0,4.99850971]
[1752504550668,3.51,166.13,166.01,6.75853256]
[1752504550967,3.51,166.06,166.03,6.0215]
[1752504551171,6.75853256,166.14,166.01,6.75853256]
[1752504551469,3.51,166.13,166.04,6.75853256]
[1752504552167,6.02,166.08,166.05,6.0206]
[1752504552469,6.75853256,166.12,166.02,6.75853256]
[1752504552669,6.0204,166.06,166.03,6.0214]
[1752504552873,3.51,166.11,166.0,6.75853256]
[1752504553270,3.51,166.09,165.99,6.75853256]
[1752504553466,3.51,166.09,165.91,12.0514]
[1752504553670,3.51,166.09,165.98,6.75853256]
[1752504553871,3.51,166.03,165.98,6.75853256]
[1752504554072,6.0214,166.04,165.98,6.75853256]
[1752504554274,3.51,166.03,165.91,12.0514]
[1752504554576,3.51,166.07,165.98,6.75853256]
[1752504554777,30.057,166.12,165.98,6.75853256]
[1752504555079,3.51,166.01,165.97,6.75853256]
[1752504555283,6.75853256,166.08,165.97,6.75853256]
[1752504555576,6.75853256,166.1,165.91,12.0514]
[1752504555781,3.51,166.03,165.9,705.26]
[1752504556081,3.51,165.98,165.95,6.0243]
[1752504556578,3.51,165.98,165.96,6.024]
[1752504556779,3.51,165.98,165.92,6.75853256]
[1752504556980,3.51,165.98,165.96,6.0239]
[1752504557278,3.51,166.03,165.92,6.75853256]
[1752504557777,520.12,166.07,165.9,519.88]
[1752504557778,6.75853256,166.06,165.95,6.75853256]
[1752504557974,520.12,166.07,165.95,6.75853256]
[1752504558170,520.12,166.07,165.9,532.980777]
[1752504558368,520.12,166.07,165.98,6.75853256]
[1752504558774,6.0208,166.05,166.01,6.022]
[1752504559174,520.12,166.07,165.98,6.75853256]
[1752504559376,18.02,166.11,165.9,520.928477]
[1752504559675,6.75853256,166.07,165.91,185.54]
[1752504559874,6.0218,166.03,165.99,6.0227]
[1752504560684,6.75853256,166.07,166.0,6.0226]
[1752504560880,6.75853256,166.07,165.96,6.75853256]
[1752504561581,6.75853256,166.09,165.96,6.75853256]
[1752504561778,6.75853256,166.09,165.91,197.5917]
[1752504561779,6.0205,166.06,165.99,6.75853256]
[1752504561980,185.44,166.12,165.99,6.75853256]
[1752504561981,6.75853256,166.11,165.99,6.75853256]
[1752504562884,6.75853256,166.11,166.04,6.0208]
[1752504563084,6.75853256,166.11,165.99,6.75853256]
[1752504563377,6.75853256,166.11,166.04,6.0208]
[1752504563577,520.2,166.15,166.05,6.77058117]
[1752504563778,6.0176,166.14,166.05,6.77058117]
[1752504563982,6.77058117,166.17,166.05,6.77058117]
[1752504564282,185.46,166.21,166.11,6.0184]
[1752504564283,6.0174,166.15,166.11,6.0184]
[1752504564583,6.77058117,166.19,166.08,6.77058117]
[1752504564785,6.77058117,166.19,166.11,6.0186]
[1752504564786,6.0174,166.15,166.11,6.0186]
[1752504564986,6.0174,166.15,166.08,6.77058117]
[1752504565183,6.77058117,166.19,166.08,6.77058117]
[1752504565376,192.23058117,166.21,166.11,6.77058117]
[1752504566387,6.76410977,166.2,166.08,6.76410977]
[1752504566784,6.0179,166.13,166.1,6.019]
[1752504566985,6.76410977,166.17,166.06,6.76410977]
[1752504567483,6.76410977,166.17,166.09,6.0193]
[1752504567684,6.76410977,166.17,166.06,6.76410977]
[1752504568386,6.76410977,166.17,166.05,6.76410977]
[1752504568586,6.76410977,166.17,166.07,6.02]
[1752504568986,11.14069356,166.17,166.0,520.26]
[1752504569190,11.14069356,166.14,166.02,11.14069356]
[1752504569393,11.14069356,166.14,166.0,520.26]
[1752504569686,11.14769011,166.12,166.0,520.26]
[1752504569885,11.14769011,166.12,165.98,196.56769011]
[1752504570291,6.0211,166.05,166.01,6.0222]
[1752504571090,11.14769011,166.12,166.01,6.0222]
[1752504571292,11.14769011,166.09,165.99,6.0227]
[1752504571590,11.14769011,166.09,165.95,11.14769011]
[1752504571591,6.0219,166.02,165.95,11.14769011]
[1752504571788,6.0219,166.02,165.97,6.0237]
[1752504571988,11.14769011,166.09,165.97,6.0237]
[1752504572194,705.6,166.13,165.97,6.0237]
[1752504572491,11.14769011,166.08,165.97,6.0237]
[1752504572684,6.0217,166.03,165.95,11.14769011]
[1752504572885,11.14769011,166.08,165.95,11.14769011]
[1752504573094,11.14769011,166.08,165.99,6.0227]
[1752504573295,716.74769011,166.13,165.98,11.14769011]
[1752504573587,716.74769011,166.13,166.03,6.0214]
[1752504573788,716.74769011,166.13,165.98,11.14769011]
[1752504573982,716.74769011,166.13,165.99,11.14769011]
[1752504574385,6.0207,166.06,165.99,11.14769011]
[1752504574585,716.74769011,166.13,166.01,6.022]
[1752504574792,716.74769011,166.13,165.99,11.14769011]
[1752504574988,6.0214,166.04,165.99,11.14769011]
[1752504575186,6.0214,166.04,166.0,6.0223]
[1752504575494,705.6,166.13,165.96,11.14769011]
[1752504575693,11.14769011,166.09,166.0,6.0226]
[1752504576196,11.14769011,166.09,165.93,196.56769011]
[1752504576494,11.14769011,166.06,165.93,185.42]
[1752504576687,11.14769011,166.06,165.97,6.0236]
[1752504577083,12.0372,166.12,165.92,531.32769011]
[1752504577288,11.14769011,166.1,165.95,11.14769011]
[1752504577689,6.021,166.05,166.01,6.0222]
[1752504577993,11.14769011,166.1,165.95,11.14769011]
[1752504578393,6.0215,166.04,165.95,11.14769011]
[1752504579891,6.0215,166.04,165.92,520.18]
[1752504580091,6.0215,166.04,165.96,11.14769011]
[1752504580395,196.86769011,166.04,165.89,4.99850971]
[1752504580593,196.86769011,166.04,165.85,4.99850971]
[1752504580789,196.86769011,166.04,165.89,11.14769011]
[1752504580989,196.86769011,166.04,165.94,6.0244]
[1752504581185,196.86769011,166.04,165.84,4.99850971]
[1752504581186,196.86769011,166.04,165.88,11.14769011]
[1752504581396,6.0232,165.99,165.88,11.14769011]
[1752504581591,196.86769011,166.04,165.94,6.0246]
[1752504581896,6.0233,165.99,165.88,11.14769011]
[1752504582096,196.86769011,166.04,165.88,11.14769011]
[1752504582299,196.86769011,166.04,165.89,11.14769011]
[1752504582595,11.16070408,166.02,165.87,11.16070408]
[1752504582998,11.16070408,166.02,165.91,6.0256]
[1752504583198,11.16070408,166.02,165.87,11.16070408]
[1752504583584,520.42,166.03,165.83,13.10579298]
[1752504583585,11.16070408,165.99,165.83,13.10579298]
[1752504583795,11.16070408,165.99,165.85,11.16070408]
[1752504584194,11.16070408,166.02,165.88,11.16070408]
[1752504584402,185.84,166.01,165.88,11.16070408]
[1752504584695,531.58070408,166.03,165.88,11.16070408]
[1752504584895,520.42,166.03,165.91,11.16070408]
[1752504585095,520.42,166.03,165.83,4.99850971]
[1752504585096,32.38767335,166.09,166.0,6.0224]
[1752504585290,218.32767335,166.09,165.94,11.16070408]
[1752504585493,11.15352173,166.08,165.94,11.15352173]
[1752504585690,6.0217,166.03,165.94,11.15352173]
[1752504586097,196.99352173,166.08,165.94,11.15352173]
[1752504586292,196.97352173,166.08,165.94,11.15352173]
[1752504586793,6.0214,166.04,165.94,11.15352173]
[1752504586994,196.97352173,166.08,165.94,11.15352173]
[1752504587189,11.15518392,166.06,165.93,11.15518392]
[1752504587496,6.0224,166.01,165.93,11.15518392]
[1752504587897,11.15518392,166.06,165.92,11.15518392]
[1752504588096,29.17518392,166.06,165.92,11.15518392]
[1752504588294,11.15518392,166.03,165.89,11.15518392]
[1752504589193,6.0236,165.98,165.91,6.77970452]
[1752504589693,192.45943413,166.03,165.91,6.77943413]
[1752504590299,192.45943413,166.03,165.95,6.0244]
[1752504590596,192.45943413,166.03,165.91,6.77943413]
[1752504590597,185.66,166.02,165.91,6.77943413]
[1752504590795,6.0237,165.97,165.94,6.0245]
[1752504591502,6.77943413,166.01,165.93,6.025]
[1752504591902,6.77943413,166.01,165.85,4.99850971]
[1752504592097,6.78378553,165.96,165.8,4.99850971]
[1752504592304,6.78378553,165.93,165.8,6.78378553]
[1752504592500,185.54,165.92,165.8,6.78378553]
[1752504592701,185.54,165.92,165.75,4.99850971]
[1752504592900,18.02,165.96,165.81,11.17144019]
[1752504593104,11.17144019,165.94,165.81,11.17144019]
[1752504593505,185.66,165.93,165.76,17.06090971]
[1752504593703,185.66,165.93,165.78,11.17144019]
[1752504594104,185.66,165.93,165.85,6.0278]
[1752504594498,11.17144019,165.94,165.85,6.0278]
[1752504594699,6.0267,165.89,165.85,6.0278]
[1752504594899,185.64,165.92,165.76,12.0624]
[1752504595103,185.64,165.92,165.8,11.17301958]
[1752504595306,6.0267,165.89,165.8,11.17301958]
[1752504595505,185.64,165.92,165.8,11.17301958]
[1752504595703,11.18027569,165.85,165.72,6.66362799]
[1752504595904,11.18027569,165.82,165.68,11.18027569]
[1752504596106,186.32,165.83,165.71,11.18027569]
[1752504596301,186.32,165.83,165.61,7.71362346]
[1752504596302,11.18027569,165.81,165.61,1.04999547]
[1752504596510,531.82027569,165.81,165.72,6.0324]
[1752504596809,186.44,165.8,165.68,11.18027569]
[1752504597204,186.44,165.79,165.69,11.18027569]
[1752504597412,520.64,165.81,165.69,11.18027569]
[1752504597614,186.36,165.79,165.74,6.0318]
[1752504597807,192.3905,165.79,165.74,6.0318]
[1752504598006,186.32,165.8,165.73,6.0323]
[1752504598314,6.0309,165.78,165.69,11.18027569]
[1752504598610,6.0309,165.78,165.73,6.0321]
[1752504599114,186.3,165.8,165.69,11.18027569]
[1752504599303,186.32,165.79,165.69,11.18027569]
[1752504599708,520.64,165.81,165.69,11.18027569]
[1752504599904,186.2,165.8,165.69,11.18027569]
[1752504600107,186.2,165.8,165.73,6.0324]
[1752504600319,186.2,165.8,165.69,11.18027569]
[1752504600614,6.0311,165.77,165.73,6.0322]
[1752504600813,520.64,165.81,165.7,11.18027569]
[1752504601008,520.64,165.81,165.63,12.072]
[1752504601209,520.64,165.81,165.8,6.0299]
[1752504602217,520.98,165.89,165.76,11.18027569]
[1752504602416,186.16,165.88,165.79,11.18027569]
[1752504602617,186.22,165.88,165.79,11.18027569]
[1752504603517,532.16027569,165.93,165.79,11.18027569]
[1752504603518,186.22,165.89,165.79,11.18027569]
[1752504603719,11.18027569,165.93,165.79,11.18027569]
[1752504603916,186.06,165.92,165.82,11.18027569]
[1752504604113,6.0252,165.93,165.82,11.18027569]
[1752504604316,186.06,165.92,165.82,11.18027569]
[1752504604622,192.0855,165.92,165.82,11.18027569]
[1752504604919,186.02,165.92,165.82,11.18027569]
[1752504605120,192.0456,165.92,165.82,11.18027569]
[1752504605321,192.0456,165.92,165.88,6.0267]
[1752504605721,192.0456,165.92,165.82,11.18027569]
[1752504606113,11.16959955,165.93,165.7,62.0]
[1752504606319,11.16959955,165.9,165.79,11.16959955]
[1752504606514,11.16959955,165.9,165.85,6.0278]
[1752504606715,6.0272,165.88,165.79,11.16959955]
[1752504606915,11.16959955,165.9,165.79,11.16959955]
[1752504607720,6.0274,165.87,165.79,11.16959955]
[1752504607914,11.16959955,165.9,165.79,11.16959955]
[1752504608421,11.16959955,165.9,165.74,11.16959955]
[1752504608825,6.0283,165.85,165.81,6.0293]
[1752504609024,185.72,165.85,165.81,6.0293]
[1752504609224,185.72,165.85,165.74,11.16959955]
[1752504610116,185.72,165.85,165.8,6.0297]
[1752504610320,185.72,165.85,165.74,11.16959955]
[1752504610517,185.72,165.85,165.62,11.18465554]
[1752504610518,550.18465554,165.84,165.62,11.18465554]
[1752504610718,18.02,165.8,165.65,11.18465554]
[1752504610917,203.74,165.79,165.65,11.18465554]
[1752504611121,18.02,165.79,165.65,11.18465554]
[1752504611324,185.72,165.78,165.65,11.18465554]
[1752504611625,6.0318,165.75,165.65,11.18465554]
[1752504611826,185.72,165.78,165.65,11.18465554]
[1752504612629,6.0324,165.74,165.7,6.0332]
[1752504612830,185.72,165.78,165.7,6.0332]
[1752504613030,6.0316,165.76,165.72,6.0325]
[1752504613235,185.72,165.78,165.72,6.0325]
[1752504613727,185.76,165.79,165.68,11.18465554]
[1752504614126,520.98,165.84,165.71,11.18465554]
[1752504614326,185.76,165.83,165.71,11.18465554]
[1752504614928,11.18782292,165.82,165.66,12.0699]
[1752504615128,6.0305,165.79,165.69,11.18782292]
[1752504615323,185.82,165.79,165.69,11.18782292]
[1752504616322,6.0302,165.79,165.75,6.0314]
[1752504616526,6.0302,165.79,165.69,11.18782292]
[1752504616732,185.82,165.8,165.77,6.0306]
[1752504616933,18.02,165.83,165.69,11.18782292]
[1752504617133,185.8,165.82,165.63,521.1]
[1752504617332,6.0315,165.76,165.72,6.0327]
[1752504617538,6.0315,165.76,165.67,11.18876598]
[1752504617539,185.78,165.76,165.67,11.18876598]
[1752504618433,18.02,165.76,165.65,11.18876598]
[1752504618636,185.8,165.75,165.65,11.18876598]
[1752504618831,6.0331,165.72,165.68,6.0342]
[1752504619031,185.8,165.75,165.65,11.18876598]
[1752504619533,185.8,165.75,165.69,6.0335]
[1752504619734,185.8,165.75,165.65,11.18876598]
[1752504620135,6.0322,165.74,165.65,11.18876598]
[1752504620334,185.8,165.74,165.65,11.18876598]
[1752504620735,6.0325,165.73,165.69,6.0336]
[1752504621033,185.8,165.75,165.65,11.18876598]
[1752504621234,6.0323,165.74,165.7,6.0332]
[1752504621434,185.8,165.75,165.65,11.18876598]
[1752504621834,6.0323,165.74,165.7,6.0333]
[1752504622038,185.8,165.75,165.65,11.18876598]
[1752504622234,185.8,165.75,165.6,6.26927929]
[1752504622438,185.82,165.74,165.65,11.18876598]
[1752504622841,6.0319,165.75,165.71,6.0328]
[1752504623042,185.82,165.76,165.6,6.26927929]
[1752504623237,185.82,165.76,165.65,11.18876598]
[1752504623442,6.0318,165.75,165.65,11.18876598]
[1752504623642,521.28,165.77,165.65,11.18876598]
[1752504623942,521.28,165.77,165.6,6.26927929]
[1752504623943,707.1,165.77,165.72,6.0326]
[1752504624335,6.0315,165.76,165.67,11.18876598]
[1752504624536,707.1,165.77,165.67,11.18876598]
[1752504625032,11.18876598,165.86,165.7,11.18876598]
[1752504625234,185.82,165.85,165.73,11.18876598]
[1752504625431,11.18876598,165.86,165.77,6.0306]
[1752504625638,18.02,165.84,165.66,12.0696]
[1752504625838,185.84,165.85,165.72,11.18876598]
[1752504626038,185.84,165.85,165.76,6.0311]
[1752504626236,185.84,165.85,165.72,11.18876598]
[1752504626437,185.84,165.85,165.74,6.0318]
[1752504626637,185.84,165.85,165.72,11.18876598]
[1752504626946,6.79479655,165.83,165.72,6.79479655]
[1752504627143,6.0308,165.78,165.66,18.86439655]
[1752504627343,6.79479655,165.83,165.72,6.79479655]
[1752504627542,6.79504281,165.8,165.69,6.79504281]
[1752504627844,185.84,165.79,165.69,6.79504281]
[1752504628039,6.0312,165.77,165.71,6.79504281]
[1752504628243,185.84,165.79,165.71,6.79504281]
[1752504628643,6.0312,165.77,165.73,6.0322]
[1752504628947,185.84,165.79,165.71,6.79504281]
[1752504629241,185.84,165.79,165.73,6.0323]
[1752504629442,185.84,165.79,165.62,12.0725]
[1752504629642,6.0323,165.74,165.71,6.0331]
[1752504629847,185.84,165.79,165.67,6.79504281]
[1752504630050,6.79504281,165.78,165.67,6.79504281]
[1752504630348,6.79504281,165.76,165.64,6.79504281]
[1752504630640,6.0331,165.72,165.68,6.0339]
[1752504630844,6.79504281,165.76,165.64,6.79504281]
[1752504632039,6.79504281,165.76,165.6,6.26927929]
[1752504632236,6.0342,165.69,165.66,6.0348]
[1752504632848,6.0338,165.7,165.63,6.80151514]
[1752504633041,6.80151514,165.76,165.63,6.80151514]
[1752504634650,6.80151514,165.67,165.6,6.26927929]
[1752504634843,528.14151514,165.71,165.6,6.26927929]
[1752504635043,185.84,165.7,165.61,6.80151514]
[1752504635442,185.84,165.7,165.6,13.07079443]
[1752504635847,6.0348,165.67,165.6,13.07079443]
[1752504636048,185.84,165.7,165.6,13.07079443]
[1752504636350,6.0342,165.68,165.61,6.80151514]
[1752504636650,185.84,165.7,165.6,13.07079443]
[1752504636847,6.0344,165.68,165.6,13.07079443]
[1752504637147,185.84,165.7,165.6,13.07079443]
[1752504637352,192.64151514,165.7,165.6,13.07079443]
[1752504637647,185.86,165.69,165.6,6.26927929]
[1752504638144,6.80151514,165.67,165.6,6.26927929]
[1752504638348,6.80151514,165.64,165.6,6.26927929]
[1752504638550,185.86,165.64,165.6,6.26927929]
[1752504639239,18.02,165.71,165.6,6.26927929]
[1752504639543,185.84,165.7,165.66,6.0346]
[1752504639747,185.84,165.7,165.61,6.80973936]
[1752504640241,528.22973936,165.73,165.6,13.07901865]
[1752504640242,521.42,165.73,165.6,13.07901865]
[1752504640442,192.64973936,165.72,165.6,6.26927929]